fUST/lending_fUST_20241214
["ID","MTS","AMOUNT","RATE_DAILY","PERIOD"]
[345339069,1734160261392,-12840.73,0.000298,2]
[345339070,1734160261401,-1000.0,0.000298,3]
[345339071,1734160261411,-791.96185623,0.000298,7]
[345339072,1734160261420,-733.0,0.000298,3]
[345339073,1734160261430,-151.0,0.000298,7]
[345339074,1734160261439,-257.433581,0.000298,7]
[345339075,1734160261448,-257.433581,0.000298,7]
[345339076,1734160261459,-151.0,0.000298,7]
[345339077,1734160261469,-557.16875801,0.00029863,7]
[345339078,1734160261478,-500.0,0.00029863,7]
[345339079,1734160261487,-500.0,0.00029863,2]
[345339080,1734160261496,-500.0,0.00029863,7]
[345339081,1734160261505,-500.0,0.00029863,7]
[345339082,1734160261514,-620.73462458,0.00029863,7]
[345339083,1734160261525,-500.0,0.00029863,7]
[345339084,1734160261534,-701.09,0.00029863,7]
[345339085,1734160261544,-500.0,0.00029863,7]
[345339086,1734160261553,-718.73,0.00029863,7]
[345339087,1734160261563,-500.0,0.00029863,7]
[345339088,1734160261572,-500.0,0.00029863,7]
[345339089,1734160261582,-591.49,0.00029863,7]
[345339090,1734160261591,-500.0,0.00029863,7]
[345339091,1734160261601,-246.61230515,0.00029863,7]
[345339092,1734160261610,-1338.6,0.00029863,7]
[345339093,1734160261620,-205.36,0.00029863,7]
[345339094,1734160261629,-1000.0,0.00029863,2]
[345339095,1734160261639,-1391.48,0.00029863,7]
[345339096,1734160261648,-552.13,0.00029863,7]
[345339097,1734160261658,-603.19,0.00029863,7]
[345339098,1734160261667,-1301.52,0.00029863,7]
[345339099,1734160261677,-500.0,0.00029863,7]
[345339100,1734160261686,-749.59,0.00029863,7]
[345339101,1734160261696,-500.0,0.00029863,7]
[345339102,1734160261707,-861.2,0.00029863,7]
[345339103,1734160261716,-500.0,0.00029863,7]
[345339104,1734160261725,-500.0,0.00029863,7]
[345339105,1734160261735,-965.22,0.00029863,7]
[345339106,1734160261745,-500.0,0.00029863,7]
[345339107,1734160261754,-500.0,0.00029863,7]
[345339108,1734160261764,-500.0,0.00029863,7]
[345339109,1734160261774,-1126.57,0.00029863,7]
[345339110,1734160261784,-946.51,0.00029863,7]
[345339111,1734160261794,-500.0,0.00029863,7]
[345339112,1734160261803,-500.0,0.00029863,7]
[345339113,1734160261813,-500.0,0.00029863,7]
[345339114,1734160261823,-500.0,0.00029863,7]
[345339115,1734160261834,-500.0,0.00029863,7]
[345339116,1734160261844,-500.0,0.00029863,7]
[345339117,1734160261853,-520.51,0.00029863,7]
[345339118,1734160261863,-674.85,0.00029863,7]
[345339119,1734160261872,-500.0,0.00029863,7]
[345339120,1734160261881,-335.25008717,0.00029863,7]
[345339121,1734160261891,-500.0,0.00029863,7]
[345339122,1734160261900,-500.0,0.00029863,7]
[345339123,1734160261910,-2574.58,0.00029863,7]
[345339124,1734160261919,-1343.49,0.00029863,7]
[345339125,1734160261929,-500.0,0.00029863,7]
[345339126,1734160261938,-1564.63,0.00029863,7]
[345339127,1734160261948,-684.01,0.00029863,7]
[345339128,1734160261959,-2192.9,0.00029863,7]
[345339129,1734160261969,-500.0,0.00029863,7]
[345339130,1734160261978,-500.0,0.00029863,7]
[345339131,1734160261988,-1111.72,0.00029863,7]
[345339132,1734160261997,-500.0,0.00029863,7]
[345339133,1734160262007,-629.24,0.00029863,7]
[345339134,1734160262017,-565.5,0.00029863,7]
[345339135,1734160262027,-1386.54,0.00029863,7]
[345339136,1734160262037,-506.09,0.00029863,7]
[345339137,1734160262047,-1124.97,0.00029863,7]
[345339138,1734160262056,-500.0,0.00029863,7]
[345339139,1734160262066,-500.0,0.00029863,7]
[345339140,1734160262076,-912.18,0.00029863,7]
[345339141,1734160262086,-665.69,0.00029863,7]
[345339142,1734160262095,-500.0,0.00029863,7]
[345339143,1734160262105,-423.94861862,0.00029863,7]
[345339144,1734160262115,-4949.7,0.00029863,7]
[345339145,1734160262125,-1256.84,0.00029863,7]
[345339146,1734160262135,-500.0,0.00029863,7]
[345339147,1734160262145,-995.39,0.00029863,7]
[345339148,1734160262155,-805.1,0.00029863,7]
[345339149,1734160262165,-871.29,0.00029863,7]
[345339150,1734160262175,-1280.7,0.00029863,7]
[345339151,1734160262191,-13675.67,0.00029863,7]
[345339152,1734160262202,-500.0,0.00029863,7]
[345339153,1734160262212,-1277.33,0.00029863,7]
[345339154,1734160262223,-500.0,0.00029863,7]
[345339155,1734160262232,-1956.62,0.00029863,7]
[345339156,1734160262242,-2298.6,0.00029863,7]
[345339157,1734160262251,-741.9,0.00029863,7]
[345339158,1734160262263,-500.0,0.00029863,7]
[345339159,1734160262273,-649.72447186,0.00029863,7]
[345339160,1734160262282,-10312.08,0.00029863,7]
[345339161,1734160262292,-1076.48,0.00029863,7]
[345339162,1734160262302,-687.28,0.00029863,7]
[345339163,1734160262311,-5762.06,0.00029863,5]
[345339164,1734160262321,-909.93,0.00029863,7]
[345339165,1734160262330,-695.42,0.00029863,7]
[345339166,1734160262340,-595.78,0.00029863,7]
[345339167,1734160262349,-962.18,0.00029863,7]
[345339168,1734160262359,-303.06060909,0.0002987,2]
[345339169,1734160262369,-303.06060909,0.0002987,2]
[345339170,1734160262378,-3034.73836912,0.0002989,2]
[345339171,1734160262388,-252.84370161,0.00029898,5]
[345339172,1734160262398,-2441.24,0.000299,30]
[345339173,1734160262407,-4073.60600576,0.0002999,2]
[345339174,1734160262416,-1000.0,0.00029999,7]
[345339175,1734160262426,-1000.0,0.00029999,5]
[345339176,1734160262436,-1000.0,0.00029999,2]
[345339177,1734160262446,-160.0,0.0003,2]
[345339178,1734160262456,-2014.88454771,0.0003,2]
[345339179,1734160262465,-16931.57744466,0.0003,15]
[345339180,1734160262475,-157.48125,0.0003,2]
[345339181,1734160262484,-1129.22159869,0.0003,5]
[345339182,1734160262493,-189.0155,0.0003,2]
[345339183,1734160262503,-151.0,0.0003,120]
[345339184,1734160262512,-300.99,0.0003,30]
[345339185,1734160262522,-151.0,0.0003,120]
[345339186,1734160262532,-265.0,0.0003,2]
[345339187,1734160262542,-1539.45526205,0.0003002,2]
[345339188,1734160262553,-2767.46031963,0.00030037,7]
[345339189,1734160262562,-21193.04986985,0.000301,7]
[345339190,1734160262572,-360.88,0.000301,31]
[345339191,1734160262582,-360.88,0.000301,31]
[345339192,1734160262591,-360.88,0.000301,31]
[345339193,1734160262601,-360.88,0.000301,31]
[345339194,1734160262611,-360.88,0.000301,31]
[345339195,1734160262620,-360.88,0.000301,31]
[345339196,1734160262630,-360.88,0.000301,31]
[345339197,1734160262639,-360.88,0.000301,31]
[345339198,1734160262649,-360.88,0.000301,31]
[345339199,1734160262658,-360.88,0.000301,31]
[345339200,1734160262736,-500.0,0.00030136,7]
[345339201,1734160262748,-500.0,0.00030136,2]
[345339202,1734160262758,-500.0,0.00030136,7]
[345339203,1734160262768,-350.98328828,0.00030136,7]
[345339204,1734160262777,-500.0,0.00030136,7]
[345339205,1734160262787,-701.09,0.00030136,7]
[345339206,1734160262796,-500.0,0.00030136,7]
[345339207,1734160262806,-718.73,0.00030136,7]
[345339208,1734160262816,-500.0,0.00030136,7]
[345339209,1734160262826,-500.0,0.00030136,7]
[345339210,1734160262836,-591.49,0.00030136,7]
[345339211,1734160262845,-500.0,0.00030136,7]
[345339212,1734160262855,-151.0,0.00030136,7]
[345339213,1734160262864,-257.433581,0.00030136,7]
[345339214,1734160262873,-257.433581,0.00030136,7]
[345339215,1734160262883,-1338.6,0.00030136,7]
[345339216,1734160262894,-205.36,0.00030136,7]
[345339217,1734160262904,-1000.0,0.00030136,2]
[345339218,1734160262914,-1391.48,0.00030136,7]
[345339219,1734160262924,-552.13,0.00030136,7]
[345339220,1734160262934,-603.19,0.00030136,7]
[345339221,1734160262945,-1301.52,0.00030136,7]
[345339222,1734160262956,-500.0,0.00030136,7]
[345339223,1734160262966,-749.59,0.00030136,7]
[345339224,1734160262977,-500.0,0.00030136,7]
[345339225,1734160262987,-861.2,0.00030136,7]
[345339226,1734160262997,-506.13227661,0.00030136,7]
[345339227,1734160263007,-500.0,0.00030136,7]
[345339228,1734160263018,-965.22,0.00030136,7]
[345339229,1734160263028,-500.0,0.00030136,7]
[345339230,1734160263038,-500.0,0.00030136,7]
[345339231,1734160263048,-500.0,0.00030136,7]
[345339232,1734160263058,-500.0,0.00030136,120]
[345339233,1734160263068,-500.0,0.00030136,120]
[345339234,1734160263078,-500.0,0.00030136,120]
[345339235,1734160263088,-500.0,0.00030136,120]
[345339236,1734160263098,-500.0,0.00030136,120]
[345339237,1734160263108,-500.0,0.00030136,120]
[345339238,1734160263119,-500.0,0.00030136,120]
[345339239,1734160263129,-500.0,0.00030136,120]
[345339240,1734160263139,-549.94009368,0.00030136,120]
[345339241,1734160263149,-1126.57,0.00030136,7]
[345339242,1734160263159,-946.51,0.00030136,7]
[345339243,1734160263169,-500.0,0.00030136,7]
[345339244,1734160263181,-500.0,0.00030136,7]
[345339245,1734160263198,-500.0,0.00030136,7]
[345339246,1734160263217,-500.0,0.00030136,7]
[345339247,1734160263230,-151.0,0.00030136,7]
[345339248,1734160263239,-1000.0,0.00030136,120]
[345339249,1734160263250,-500.0,0.00030136,7]
[345339250,1734160263260,-500.0,0.00030136,7]
[345339251,1734160263271,-520.51,0.00030136,7]
[345339252,1734160263281,-674.85,0.00030136,7]
[345339253,1734160263292,-500.0,0.00030136,7]
[345339254,1734160263303,-500.0,0.00030136,7]
[345339255,1734160263313,-500.0,0.00030136,7]
[345339256,1734160263323,-2574.58,0.00030136,7]
[345339257,1734160263332,-1343.49,0.00030136,7]
[345339258,1734160263342,-500.0,0.00030136,7]
[345339259,1734160263352,-1564.63,0.00030136,7]
[345339260,1734160263363,-684.01,0.00030136,7]
[345339261,1734160263373,-2192.9,0.00030136,7]
[345339262,1734160263383,-500.0,0.00030136,7]
[345339263,1734160263393,-500.0,0.00030136,7]
[345339264,1734160263403,-1111.72,0.00030136,7]
[345339265,1734160263414,-500.0,0.00030136,7]
[345339266,1734160263425,-629.24,0.00030136,7]
[345339267,1734160263435,-565.5,0.00030136,7]
[345339268,1734160263446,-1386.54,0.00030136,7]
[345339269,1734160263463,-506.09,0.00030136,7]
[345339270,1734160263474,-1124.97,0.00030136,7]
[345339271,1734160263485,-500.0,0.00030136,7]
[345339272,1734160263494,-500.0,0.00030136,7]
[345339273,1734160263504,-912.18,0.00030136,7]
[345339274,1734160263514,-665.69,0.00030136,7]
[345339275,1734160263524,-500.0,0.00030136,7]
[345339276,1734160263534,-4949.7,0.00030136,7]
[345339277,1734160263545,-1256.84,0.00030136,7]
[345339278,1734160263555,-500.0,0.00030136,7]
[345339279,1734160263566,-995.39,0.00030136,7]
[345339280,1734160263576,-805.1,0.00030136,7]
[345339281,1734160263586,-871.29,0.00030136,7]
[345339282,1734160263596,-1280.7,0.00030136,7]
[345339283,1734160263607,-13675.67,0.00030136,7]
[345339284,1734160263617,-151.0,0.00030136,7]
[345339285,1734160263626,-500.0,0.00030136,7]
[345339286,1734160263636,-1277.33,0.00030136,7]
[345339287,1734160263646,-512.43981146,0.00030136,7]
[345339288,1734160263656,-1956.62,0.00030136,7]
[345339289,1734160263666,-2298.6,0.00030136,7]
[345339290,1734160263676,-741.9,0.00030136,7]
[345339291,1734160263686,-500.0,0.00030136,11]
[345339292,1734160263696,-500.0,0.00030136,7]
[345339293,1734160263711,-10312.08,0.00030136,7]
[345339294,1734160263721,-1076.48,0.00030136,7]
[345339295,1734160263730,-687.28,0.00030136,7]
[345339296,1734160263740,-5762.06,0.00030136,5]
[345339297,1734160263751,-909.93,0.00030136,7]
[345339298,1734160263761,-695.42,0.00030136,7]
[345339299,1734160263771,-595.78,0.00030136,7]
[345339300,1734160263780,-962.18,0.00030136,7]
[345339301,1734160263790,-303.06060909,0.0003016,2]
[345339302,1734160263800,-303.06060909,0.0003016,2]
[345339303,1734160263810,-824.18462808,0.0003017,2]
[345339304,1734160263820,-605.9519619,0.000302,3]
[345339305,1734160263830,-2000.0,0.000302,2]
[345339306,1734160263840,-192.264552,0.00030256,7]
[345339307,1734160263850,-257.433581,0.00030256,7]
[345339308,1734160263859,-257.433581,0.00030256,7]
[345339309,1734160263869,-257.433581,0.00030256,7]
[345339310,1734160263878,-257.433577,0.00030256,7]
[345339311,1734160263888,-151.0,0.00030268,7]
[345339312,1734160263898,-151.0,0.00030268,7]
[345339313,1734160263907,-151.0,0.00030268,7]
[345339314,1734160263917,-151.0,0.0003027,7]
[345339315,1734160263927,-172.147434,0.0003027,7]
[345339316,1734160263936,-2000.0,0.0003027,2]
[345339317,1734160263946,-799.57807383,0.0003027,2]
[345339318,1734160263956,-518.12905916,0.0003027,2]
[345339319,1734160263965,-293.16085512,0.0003027,2]
[345339320,1734160263974,-811.96504855,0.0003027,2]
[345339321,1734160263984,-3214.22902764,0.0003027,2]
[345339322,1734160263993,-322.90315759,0.0003027,2]
[345339323,1734160264003,-1194.21690271,0.0003027,2]
[345339324,1734160264012,-288.1831955,0.0003027,2]
[345339325,1734160264021,-51055.14236253,0.0003027,2]
[345339326,1734160264031,-4152.68922991,0.0003027,2]
[345339327,1734160264040,-10170.18644799,0.0003027,2]
[345339328,1734160264049,-6210.91681028,0.0003027,2]
[345339329,1734160264059,-155.49588505,0.0003027,2]
[345339330,1734160264068,-1692.60892356,0.0003027,2]
[345339331,1734160264077,-440.49165385,0.0003027,2]
[345339332,1734160264087,-1026.33149317,0.0003027,2]
[345339333,1734160264096,-138161.43570695,0.0003027,2]
[345339334,1734160264107,-8089.59185107,0.0003027,2]
[345339335,1734160264117,-498.0,0.0003027,7]
[345339336,1734160264126,-248.36365668,0.0003027,2]
[345339337,1734160264205,-187.00666362,0.0003027,2]
[345339338,1734160264216,-299.42575748,0.0003027,2]
[345339339,1734160264227,-5818.00672838,0.0003027,2]
[345339340,1734160264237,-15652.81681658,0.0003027,2]
[345339341,1734160264246,-23111.02006142,0.0003027,5]
[345339342,1734160264257,-1322444.8953408,0.0003027,10]
[345339402,1734161432613,-300.0,0.00022009,2]
[345339404,1734161432624,-21273.28041365,0.0002201,16]
[345339406,1734161432634,-420.0,0.0002421,2]
[345339408,1734161432643,-250.8038242,0.00025999,2]
[345339410,1734161432652,-26052.87204551,0.00026,20]
[345339412,1734161432662,-2482.0586502,0.00026,2]
[345339414,1734161432671,-15064.05892794,0.0002622,2]
[345339415,1734161432684,-9835.94107206,0.0002622,2]
[345339417,1734161432693,-160.0,0.00026273,2]
[345339419,1734161432703,-188.6820646,0.00026627,2]
[345339421,1734161432713,-587.0,0.00026631,2]
[345339422,1734161432722,-152.0,0.00026925,2]
[345339423,1734161432732,-177.28944829,0.00027,15]
[345339424,1734161432742,-7916.66970165,0.00027,2]
[345339425,1734161432756,-2160.0,0.00027204,2]
[345339426,1734161432765,-225.5804241,0.00027297,2]
[345339427,1734161432775,-131497.44628339,0.000273,2]
[345339428,1734161432784,-288.14933225,0.000273,2]
[345339429,1734161432794,-155.9,0.000273,31]
[345339430,1734161432804,-500.0,0.00027396,2]
[345339431,1734161432814,-500.0,0.00027396,2]
[345339432,1734161432823,-217.45282676,0.00027396,2]
[345339433,1734161432833,-500.0,0.00027396,2]
[345339434,1734161432843,-409.73391904,0.00027396,2]
[345339435,1734161432852,-500.0,0.00027396,2]
[345339436,1734161432862,-500.0,0.00027396,2]
[345339437,1734161432872,-500.0,0.00027396,2]
[345339438,1734161432882,-500.0,0.00027396,2]
[345339439,1734161432891,-500.0,0.00027396,2]
[345339440,1734161432902,-500.0,0.00027396,2]
[345339441,1734161432912,-500.0,0.00027396,2]
[345339442,1734161432921,-500.0,0.00027396,2]
[345339443,1734161432931,-500.0,0.00027396,2]
[345339444,1734161432941,-500.0,0.00027396,2]
[345339445,1734161432951,-500.0,0.00027396,2]
[345339446,1734161432961,-226.00728582,0.00027396,2]
[345339447,1734161432970,-500.0,0.00027396,2]
[345339448,1734161432980,-246.31645823,0.00027396,2]
[345339449,1734161432990,-500.0,0.00027396,2]
[345339450,1734161433000,-500.0,0.00027396,2]
[345339451,1734161433011,-500.0,0.00027396,2]
[345339452,1734161433021,-500.0,0.00027396,2]
[345339453,1734161433030,-500.0,0.00027396,2]
[345339454,1734161433040,-500.0,0.00027396,2]
[345339455,1734161433050,-500.0,0.00027396,2]
[345339456,1734161433060,-500.0,0.00027396,2]
[345339457,1734161433070,-500.0,0.00027396,2]
[345339458,1734161433080,-500.0,0.00027396,2]
[345339459,1734161433091,-500.0,0.00027396,2]
[345339460,1734161433102,-500.0,0.00027396,2]
[345339461,1734161433112,-500.0,0.00027396,2]
[345339462,1734161433123,-500.0,0.00027396,2]
[345339463,1734161433133,-500.0,0.00027396,2]
[345339464,1734161433143,-500.0,0.00027396,2]
[345339465,1734161433153,-500.0,0.00027396,2]
[345339466,1734161433164,-500.0,0.00027396,2]
[345339467,1734161433174,-500.0,0.00027396,2]
[345339468,1734161433184,-500.0,0.00027396,2]
[345339469,1734161433194,-500.0,0.00027396,2]
[345339470,1734161433204,-233.83687224,0.00027396,2]
[345339471,1734161433214,-500.0,0.00027396,2]
[345339472,1734161433224,-500.0,0.00027396,2]
[345339473,1734161433234,-500.0,0.00027396,2]
[345339474,1734161433244,-323.38368722,0.00027396,2]
[345339475,1734161433253,-501.33889512,0.00027397,2]
[345339476,1734161433265,-500.0,0.00027397,7]
[345339477,1734161433275,-500.0,0.00027397,7]
[345339478,1734161433284,-500.0,0.00027397,7]
[345339479,1734161433294,-500.0,0.00027397,7]
[345339480,1734161433304,-500.0,0.00027397,7]
[345339481,1734161433313,-500.0,0.00027397,7]
[345339482,1734161433323,-512.15938201,0.00027397,7]
[345339483,1734161433333,-500.0,0.00027397,7]
[345339484,1734161433343,-212.27240305,0.00027397,2]
[345339485,1734161433354,-187.65440043,0.00027397,7]
[345339486,1734161433364,-500.0,0.00027397,7]
[345339487,1734161433374,-646.34054661,0.00027397,7]
[345339488,1734161433383,-405.75460022,0.00027397,7]
[345339489,1734161433392,-500.0,0.00027397,7]
[345339490,1734161433401,-491.89571714,0.00027397,7]
[345339491,1734161433410,-500.0,0.00027397,7]
[345339492,1734161433420,-568.71224,0.00027397,7]
[345339493,1734161433430,-500.0,0.00027397,7]
[345339494,1734161433439,-500.0,0.00027397,7]
[345339495,1734161433450,-503.29987755,0.00027397,7]
[345339496,1734161433459,-508.50050817,0.00027397,7]
[345339497,1734161433472,-500.0,0.00027397,7]
[345339498,1734161433482,-507.43212256,0.00027397,7]
[345339499,1734161433491,-505.51565302,0.00027397,7]
[345339500,1734161433501,-500.0,0.00027397,7]
[345339501,1734161433511,-507.5,0.00027397,7]
[345339502,1734161433521,-500.0,0.00027397,7]
[345339503,1734161433531,-500.0,0.00027397,2]
[345339504,1734161433541,-602.83,0.00027397,7]
[345339505,1734161433550,-500.0,0.00027397,7]
[345339506,1734161433560,-504.06044539,0.00027397,7]
[345339507,1734161433569,-380.05729286,0.00027397,7]
[345339508,1734161433584,-504.98881386,0.00027397,7]
[345339509,1734161433593,-500.0,0.00027397,7]
[345339510,1734161433603,-500.0,0.00027397,7]
[345339511,1734161433612,-500.0,0.00027397,7]
[345339512,1734161433623,-506.23020849,0.00027397,7]
[345339513,1734161433633,-500.0,0.00027397,7]
[345339514,1734161433643,-500.0,0.00027397,7]
[345339515,1734161433653,-846.77,0.00027397,7]
[345339516,1734161433663,-1000.0,0.00027397,2]
[345339517,1734161433673,-501.90507479,0.00027397,7]
[345339518,1734161433683,-500.0,0.00027397,7]
[345339519,1734161433692,-505.89267266,0.00027397,7]
[345339520,1734161433701,-500.0,0.00027397,7]
[345339521,1734161433711,-547.22740481,0.00027397,7]
[345339522,1734161433720,-509.57720132,0.00027397,7]
[345339523,1734161433730,-502.02987008,0.00027397,7]
[345339524,1734161433740,-502.7450115,0.00027397,7]
[345339525,1734161433750,-611.51096639,0.00027397,7]
[345339526,1734161433760,-500.0,0.00027397,7]
[345339527,1734161433770,-500.0,0.00027397,2]
[345339528,1734161433780,-503.55544445,0.00027397,7]
[345339529,1734161433791,-508.58033551,0.00027397,7]
[345339530,1734161433801,-166.34194143,0.00027397,7]
[345339531,1734161433813,-500.0,0.00027397,7]
[345339532,1734161433823,-500.0,0.00027397,7]
[345339533,1734161433833,-761.58,0.00027397,7]
[345339534,1734161433843,-504.37330604,0.00027397,7]
[345339535,1734161433853,-500.0,0.00027397,7]
[345339536,1734161433863,-500.0,0.00027397,7]
[345339537,1734161433874,-500.0,0.00027397,7]
[345339538,1734161433884,-500.0,0.00027397,7]
[345339539,1734161433895,-503.17168032,0.00027397,7]
[345339540,1734161433905,-500.0,0.00027397,7]
[345339541,1734161434053,-504.52982407,0.00027397,7]
[345339542,1734161434063,-500.0,0.00027397,7]
[345339543,1734161434074,-495.24964736,0.00027397,7]
[345339544,1734161434084,-438.91647464,0.00027397,7]
[345339545,1734161434094,-602.76218819,0.00027397,7]
[345339546,1734161434104,-610.57,0.00027397,7]
[345339547,1734161434114,-500.0,0.00027397,7]
[345339548,1734161434124,-500.0,0.00027397,7]
[345339549,1734161434134,-621.26928037,0.00027397,7]
[345339550,1734161434144,-561.77247318,0.00027397,7]
[345339551,1734161434154,-502.36897886,0.00027397,7]
[345339552,1734161434165,-445.84316075,0.00027397,7]
[345339553,1734161434175,-500.0,0.00027397,7]
[345339554,1734161434184,-500.0,0.00027397,7]
[345339555,1734161434194,-503.90255075,0.00027397,7]
[345339556,1734161434204,-501.43363172,0.00027397,7]
[345339557,1734161434214,-168.0,0.00027397,7]
[345339558,1734161434223,-500.0,0.00027397,7]
[345339559,1734161434233,-500.0,0.00027397,7]
[345339560,1734161434243,-880.22,0.00027397,7]
[345339561,1734161434257,-500.0,0.00027397,7]
[345339562,1734161434272,-501.17818757,0.00027397,7]
[345339563,1734161434282,-199.31125474,0.00027397,7]
[345339564,1734161434291,-786.14,0.00027397,7]
[345339565,1734161434301,-500.0,0.00027397,7]
[345339566,1734161434311,-500.0,0.00027397,7]
[345339567,1734161434321,-1000.0,0.00027397,2]
[345339568,1734161434331,-461.20162706,0.00027397,7]
[345339569,1734161434341,-500.0,0.00027397,7]
[345339570,1734161434351,-500.0,0.00027397,7]
[345339571,1734161434361,-500.0,0.00027397,7]
[345339572,1734161434371,-500.0,0.00027397,7]
[345339573,1734161434381,-259.44334206,0.00027397,7]
[345339574,1734161434391,-500.0,0.00027397,7]
[345339575,1734161434401,-500.0,0.00027397,7]
[345339576,1734161434411,-544.77,0.00027397,7]
[345339577,1734161434421,-501.29868455,0.00027397,7]
[345339578,1734161434431,-502.39343332,0.00027397,7]
[345339579,1734161434442,-500.0,0.00027397,7]
[345339580,1734161434451,-500.0,0.00027397,7]
[345339581,1734161434461,-500.0,0.00027397,7]
[345339582,1734161434471,-500.0,0.00027397,7]
[345339583,1734161434481,-502.67926321,0.00027397,7]
[345339584,1734161434490,-500.0,0.00027397,7]
[345339585,1734161434500,-500.0,0.00027397,7]
[345339586,1734161434511,-500.0,0.00027397,7]
[345339587,1734161434521,-500.0,0.00027397,7]
[345339588,1734161434530,-500.0,0.00027397,7]
[345339589,1734161434542,-500.0,0.00027397,7]
[345339590,1734161434552,-500.0,0.00027397,7]
[345339591,1734161434562,-500.0,0.00027397,7]
[345339592,1734161434573,-500.0,0.00027397,7]
[345339593,1734161434586,-500.0,0.00027397,7]
[345339594,1734161434596,-500.0,0.00027397,7]
[345339595,1734161434606,-500.0,0.00027397,7]
[345339596,1734161434616,-500.0,0.00027397,7]
[345339597,1734161434627,-502.17264345,0.00027397,7]
[345339598,1734161434637,-1000.0,0.00027397,7]
[345339599,1734161434646,-500.0,0.00027397,7]
[345339600,1734161434656,-500.0,0.00027397,7]
[345339601,1734161434666,-500.0,0.00027397,7]
[345339602,1734161434675,-502.76064418,0.00027397,7]
[345339603,1734161434684,-712.64,0.00027397,7]
[345339604,1734161434694,-629.89,0.00027397,7]
[345339605,1734161434703,-500.0,0.00027397,7]
[345339606,1734161434713,-500.0,0.00027397,7]
[345339607,1734161434722,-500.0,0.00027397,7]
[345339608,1734161434731,-506.17291578,0.00027397,7]
[345339609,1734161434740,-579.17278963,0.00027397,7]
[345339610,1734161434750,-500.0,0.00027397,7]
[345339611,1734161434760,-500.0,0.00027397,7]
[345339612,1734161434769,-500.0,0.00027397,7]
[345339613,1734161434779,-502.98707958,0.00027397,7]
[345339614,1734161434789,-507.67712653,0.00027397,7]
[345339615,1734161434799,-500.0,0.00027397,7]
[345339616,1734161434808,-500.0,0.00027397,7]
[345339617,1734161434818,-500.0,0.00027397,7]
[345339618,1734161434827,-500.0,0.00027397,7]
[345339619,1734161434837,-510.12536959,0.00027397,7]
[345339620,1734161434846,-500.0,0.00027397,7]
[345339621,1734161434855,-500.0,0.00027397,7]
[345339622,1734161434865,-504.31256177,0.00027397,7]
[345339623,1734161434874,-500.0,0.00027397,7]
[345339624,1734161434884,-502.36237694,0.00027397,7]
[345339625,1734161434893,-500.0,0.00027397,7]
[345339626,1734161434904,-500.0,0.00027397,7]
[345339627,1734161434913,-507.2090325,0.00027397,7]
[345339628,1734161434923,-500.0,0.00027397,7]
[345339629,1734161434933,-500.0,0.00027397,7]
[345339630,1734161434942,-504.74555883,0.00027397,7]
[345339631,1734161434952,-500.0,0.00027397,7]
[345339632,1734161434962,-502.33325286,0.00027397,7]
[345339633,1734161434971,-331.5487728,0.00027397,7]
[345339634,1734161434981,-500.0,0.00027397,2]
[345339635,1734161434991,-500.0,0.00027397,7]
[345339636,1734161435001,-504.63360233,0.00027397,7]